lending/lending_fUSD_20260119
["ID","MTS","AMOUNT","RATE_DAILY","PERIOD"]
[402720024,1768836638923,-234.8851885,0.00017158,2]
[402720025,1768836638932,-181.0801015,0.00017165,2]
[402720027,1768836638942,-574.12855637,0.00017165,2]
[402720029,1768836638951,-168.0,0.00017201,2]
[402720030,1768836638961,-168.0,0.00017207,2]
[402720031,1768836638970,-500.0,0.00017208,2]
[402720032,1768836638979,-168.0,0.00017216,2]
[402720033,1768836638989,-234.8851885,0.00017251,2]
[402720034,1768836638999,-294.12841422,0.00017254,2]
[402720035,1768836639008,-300.0,0.00017254,2]
[402720036,1768836639017,-195.0,0.00017254,2]
[402720037,1768836639026,-168.0,0.00017294,2]
[402720038,1768836639036,-168.0,0.00017296,2]
[402720039,1768836639045,-234.8851885,0.00017343,2]
[402720040,1768836639055,-168.0,0.00017389,2]
[402720041,1768836639064,-234.8851885,0.00017436,2]
[402720042,1768836639074,-190.25,0.00017444,2]
[402720043,1768836639087,-163.3,0.00017446,2]
[402720044,1768836639096,-635.92042862,0.00017458,2]
[402720045,1768836639107,-234.8851885,0.00017529,2]
[402720046,1768836639116,-234.8851885,0.00017622,2]
[402720047,1768836639128,-163.3,0.00017673,2]
[402720048,1768836639137,-595.37131296,0.00017713,2]
[402720049,1768836639149,-234.8851885,0.00017714,2]
[402720050,1768836639165,-500.0,0.00017799,2]
[402720051,1768836639186,-234.8851885,0.00017807,2]
[402720052,1768836639197,-168.0,0.00017845,2]
[402720053,1768836639207,-1000.0,0.00017867,2]
[402720054,1768836639217,-1000.0,0.00017867,2]
[402720055,1768836639226,-1000.0,0.00017867,2]
[402720056,1768836639237,-1000.0,0.00017867,2]
[402720057,1768836639247,-168.0,0.00017867,2]
[402720058,1768836639256,-170.49,0.00017874,2]
[402720059,1768836639266,-2186.75246408,0.00017889,2]
[402720060,1768836639277,-2000.0,0.00017895,2]
[402720061,1768836639288,-2000.0,0.00017895,2]
[402720062,1768836639298,-2000.0,0.00017895,2]
[402720063,1768836639309,-2000.0,0.00017895,2]
[402720064,1768836639319,-1593.735,0.00017895,2]
[402720065,1768836639329,-2000.0,0.00017895,2]
[402720066,1768836639339,-2000.0,0.00017895,2]
[402720067,1768836639348,-2000.0,0.00017895,2]
[402720068,1768836639358,-2000.0,0.00017895,2]
[402720069,1768836639367,-2000.0,0.00017895,2]
[402720070,1768836639377,-2000.0,0.00017895,2]
[402720071,1768836639387,-163.3,0.00017899,2]
[402720072,1768836639396,-234.8851885,0.000179,2]
[402720073,1768836639406,-2426.91309999,0.000179,2]
[402720074,1768836639416,-19430.99107734,0.000179,2]
[402720075,1768836639426,-1076.2648658,0.000179,2]
[402720076,1768836639436,-355.02624054,0.00017917,2]
[402720077,1768836639446,-151.01,0.00017944,2]
[402720078,1768836639456,-500.0,0.00017973,2]
[402720079,1768836639466,-500.0,0.00017973,2]
[402720080,1768836639477,-500.0,0.00017973,2]
[402720081,1768836639487,-200.0,0.00017973,2]
[402720082,1768836639498,-3315.236,0.00017981,2]
[402720083,1768836639509,-287.625,0.00017981,2]
[402720084,1768836639520,-244.64822253,0.00017989,2]
[402720085,1768836639531,-11791.74278883,0.00017999,2]
[402720086,1768836639541,-13671.12709858,0.00017999,2]
[402720087,1768836639550,-300.0,0.00017999,2]
[402720088,1768836639560,-300.0,0.00017999,2]
[402720089,1768836639570,-2000.0,0.00018,2]
[402720090,1768836639584,-151.0,0.00018,2]
[402720092,1768836639595,-1264.0,0.00018,2]
[402720093,1768836639604,-1264.0,0.00018,2]
[402720094,1768836639615,-150.0,0.00018,2]
[402720095,1768836639624,-1416.57077004,0.00018,2]
[402720096,1768836639634,-150.0,0.00018,2]
[402720097,1768836639644,-6754.64589002,0.00018,2]
[402720098,1768836639654,-150.0,0.00018,2]
[402720099,1768836639664,-888.19576499,0.00018,2]
[402720100,1768836639674,-1264.0,0.00018,2]
[402720101,1768836639683,-2006191.6754844,0.00018,2]
[402720114,1768836641564,-173.62158172,0.00015678,2]
[402720115,1768836641574,-917.94466928,0.00016915,2]
[402720116,1768836641586,-11032.89241117,0.00016915,2]
[402720117,1768836641595,-4209696.30484498,0.00018,2]
[402720118,1768836641607,-999.0,0.00018,2]
[402720119,1768836641663,-258.6914863,0.00018,2]
[402720120,1768836641675,-298.14479499,0.00018,2]
[402720121,1768836641742,-617.63591591,0.00018,2]
[402720122,1768836641826,-40932.31453005,0.00018,2]
[402720123,1768836641885,-13.6793784,0.00018,2]
[402720124,1768836641897,-519.56113632,0.00018,2]
[402720125,1768836641909,-464.69,0.00018,2]
[402720126,1768836641921,-4979.76509798,0.00018,2]
[402720127,1768836641933,-957.5,0.00018,2]
[402720128,1768836641945,-1670.25,0.00018,2]
[402720129,1768836641956,-284857.18140453,0.00018,2]
[402720130,1768836641968,-525.16036174,0.00018,2]
[402720131,1768836642009,-5261.13706738,0.00018,2]
[402720132,1768836642022,-590.9981233,0.00018,2]
[402720133,1768836642041,-500.0,0.00018,2]
[402720148,1768836643484,-1053.13,0.00017999,2]
[402720149,1768836643495,-3969.16496851,0.00018,2]
[402720150,1768836645829,-11950.83708045,0.00017161,2]
[402720151,1768836645838,-67730.4129213,0.00018,2]
[402720152,1768836645871,-917.6046059,0.00018,2]
[402720153,1768836645946,-270002.12335797,0.00018,2]
[402720160,1768836844488,1600.0,0.00025058,120]
[402720549,1768837048352,549.0,0.000153,2]
[402722128,1768837420326,1944.0,0.00018,30]
[402722202,1768837437027,-300.0,0.00015683,2]
[402722203,1768837437052,-500.0,0.00015684,2]
[402722205,1768837437076,-608.61424855,0.00015684,2]
[402722206,1768837437101,-341.78103474,0.00015684,2]
[402722207,1768837437127,-500.0,0.00015684,2]
[402722208,1768837437150,-500.0,0.00015684,2]
[402722209,1768837437173,-500.0,0.00015684,2]
[402722210,1768837437196,-166.66,0.00015755,2]
[402722211,1768837437218,-20044.94471671,0.00015859,2]
[402723087,1768837831795,-181.6,0.00016083,2]
[402723088,1768837831805,-166.66,0.00016087,2]
[402723089,1768837831814,-153.25,0.00016315,2]
[402723090,1768837831829,-1200.0,0.00016395,2]
[402723091,1768837831838,-300.0,0.00016395,2]
[402723092,1768837831848,-240.14903586,0.00016396,2]
[402723093,1768837831968,-271.90586894,0.00016396,2]
[402723096,1768837832087,-0.89930472,0.00016396,2]
[402723098,1768837832098,-42510.7815,0.00016396,2]
[402723108,1768837832450,-858971.74883218,0.00016396,2]
[402723127,1768837838964,-353.97119535,0.00016395,2]
[402723128,1768837838976,-205.74787785,0.00016395,2]
[402723129,1768837838986,-190.83828601,0.00016395,2]
[402723130,1768837838996,-500.0,0.00016395,2]
[402723131,1768837839005,-434.67759113,0.00016395,2]
[402723132,1768837839016,-51284.8118583,0.00016396,2]
[402723133,1768837839026,-153.25,0.00016405,2]
[402723134,1768837839036,-166.66,0.00016419,2]
[402723135,1768837839046,-150.0,0.00016437,2]
[402723136,1768837839056,-10558.72155965,0.00016437,2]
[402723137,1768837839066,-174.55685692,0.00016438,2]
[402723138,1768837839075,-182.31062773,0.00016438,2]
[402723139,1768837839086,-926.0,0.00016438,2]
[402723140,1768837839096,-200.0,0.00016486,2]
[402723141,1768837839106,-500.0,0.00016486,2]
[402723142,1768837839116,-301.69227512,0.00016486,2]
[402723143,1768837839126,-300.0,0.00016495,2]
[402723144,1768837839135,-153.25,0.00016496,2]
[402723145,1768837839146,-26210.11,0.00016496,2]
[402723146,1768837839156,-999.99,0.00016496,2]
[402723147,1768837839166,-4716.27,0.00016496,2]
[402723148,1768837839176,-150.99,0.00016496,2]
[402723149,1768837839186,-150.99,0.00016496,2]
[402723150,1768837839196,-299.99,0.00016496,4]
[402723151,1768837839206,-9999.99,0.00016496,2]
[402723152,1768837839217,-183.24,0.00016496,2]
[402723153,1768837839226,-9999.99,0.00016496,2]
[402723154,1768837839237,-1835.03,0.00016496,2]
[402723155,1768837839246,-9999.99,0.00016496,2]
[402723156,1768837839255,-749.31,0.00016496,2]
[402723157,1768837839263,-1894.35,0.00016496,2]
[402723158,1768837839271,-5341.7,0.00016496,2]
[402723159,1768837839280,-310.22,0.00016496,2]
[402723160,1768837839288,-153.25,0.00016587,2]
[402723161,1768837839296,-311.0,0.00016658,2]
[402723162,1768837839305,-3166.74,0.00016663,2]
[402723163,1768837839314,-151.0,0.00016675,2]
[402723164,1768837839325,-153.25,0.00016677,2]
[402723165,1768837839335,-1600.0,0.00016706,2]
[402723166,1768837839344,-166.66,0.0001675,2]
[402723167,1768837839354,-153.25,0.00016768,2]
[402723168,1768837839364,-153.25,0.00016858,2]
[402723169,1768837839374,-181.6,0.00016887,2]
[402723170,1768837839384,-246.46661956,0.00016892,2]
[402723171,1768837839393,-650.4293085,0.00016892,2]
[402723172,1768837839403,-1147.43439804,0.00016892,2]
[402723173,1768837839413,-1716.49323593,0.00016892,2]
[402723174,1768837839422,-2322.4707,0.00016892,2]
[402723175,1768837839432,-153.25,0.00016949,2]
[402723176,1768837839443,-250.0,0.00017,2]
[402723177,1768837839452,-153.25,0.0001704,2]
[402723178,1768837839463,-500.0,0.0001704,2]
[402723179,1768837839473,-1000.0,0.00017054,2]
[402723180,1768837839483,-243.0,0.00017068,2]
[402723181,1768837839495,-166.66,0.00017082,2]
[402723182,1768837839507,-200.0,0.00017087,2]
[402723183,1768837839516,-635.92042862,0.000171,2]
[402723184,1768837839527,-153.25,0.0001713,2]
[402723185,1768837839536,-243.0,0.00017141,2]
[402723186,1768837839547,-166.66,0.00017414,2]
[402723187,1768837839559,-243.0,0.00017441,2]
[402723188,1768837839569,-385.8,0.0001745,2]
[402723189,1768837839578,-536.96666598,0.00017479,2]
[402723190,1768837839587,-303.36413756,0.00017479,2]
[402723191,1768837839597,-8686.51420912,0.00017479,2]
[402723192,1768837839607,-8686.51420909,0.00017526,2]
[402723193,1768837839616,-303.36413749,0.00017539,2]
[402723194,1768837839626,-150.0,0.00017553,2]
[402723195,1768837839635,-8686.51420909,0.00017573,2]
[402723196,1768837839646,-243.0,0.00017587,2]
[402723197,1768837839656,-303.36413749,0.00017599,2]
[402723198,1768837839666,-243.0,0.00017612,2]
[402723199,1768837839679,-8686.51420909,0.00017619,2]
[402723200,1768837839689,-303.36413749,0.00017659,2]
[402723201,1768837839699,-8686.51420909,0.00017666,2]
[402723202,1768837839711,-385.8,0.00017676,2]
[402723203,1768837839721,-300.0,0.00017691,2]
[402723204,1768837839731,-195.0,0.00017691,2]
[402723205,1768837839740,-300.0,0.00017691,2]
[402723206,1768837839751,-294.12841422,0.00017691,2]
[402723207,1768837839761,-181.6,0.00017691,2]
[402723208,1768837839771,-354.60410027,0.00017696,2]
[402723209,1768837839780,-8686.51420909,0.00017713,2]
[402723210,1768837839789,-620.0,0.00017713,2]
[402723211,1768837839799,-174.61919141,0.00017713,2]
[402723212,1768837839808,-578.20924308,0.00017713,2]
[402723213,1768837839818,-4444.0,0.00017713,2]
[402723214,1768837839827,-574.12855637,0.00017713,2]
[402723215,1768837839836,-322.6107,0.00017713,2]
[402723216,1768837839846,-303.36413749,0.0001772,2]
[402723217,1768837839855,-168.0,0.00017752,2]
[402723218,1768837839865,-8686.51420909,0.0001776,2]
[402723219,1768837839874,-303.36413749,0.0001778,2]
[402723220,1768837839883,-500.0,0.00017781,2]
[402723221,1768837839893,-8686.51420909,0.00017806,2]
[402723222,1768837839904,-1000.0,0.00017832,2]
[402723223,1768837839913,-303.36413749,0.0001784,2]
[402723224,1768837839924,-8686.51420909,0.00017853,2]
[402723225,1768837839935,-1000.0,0.00017879,2]
[402723226,1768837839944,-1000.0,0.00017879,2]
[402723227,1768837839953,-1000.0,0.00017879,2]
[402723228,1768837839963,-1000.0,0.00017879,2]
[402723231,1768837839974,-536.96666598,0.00017883,2]
[402723233,1768837839984,-2000.0,0.00017888,2]
[402723235,1768837839994,-2000.0,0.00017888,2]
[402723237,1768837840004,-2000.0,0.00017888,2]
[402723239,1768837840013,-2000.0,0.00017888,2]
[402723241,1768837840022,-2000.0,0.00017888,2]
[402723243,1768837840032,-2000.0,0.00017888,2]
[402723245,1768837840044,-2000.0,0.00017888,2]
[402723247,1768837840056,-2000.0,0.00017888,2]
[402723249,1768837840066,-2000.0,0.00017888,2]
[402723251,1768837840076,-1593.735,0.00017888,2]
[402723252,1768837840086,-2000.0,0.00017888,2]
[402723253,1768837840098,-1000.0,0.000179,2]
[402723254,1768837840110,-23718.20058194,0.000179,3]
[402723255,1768837840119,-355.02624054,0.000179,2]
[402723256,1768837840130,-198.91080217,0.000179,2]
[402723257,1768837840139,-198.91080217,0.000179,2]
[402723258,1768837840148,-198.91080217,0.000179,2]
[402723259,1768837840158,-198.91080217,0.000179,2]
[402723260,1768837840167,-198.91080217,0.000179,2]
[402723261,1768837840177,-198.91080217,0.000179,2]
[402723262,1768837840187,-303.36413749,0.000179,2]
[402723263,1768837840197,-358.75495528,0.000179,2]
[402723264,1768837840206,-8686.51420909,0.000179,2]
[402723265,1768837840215,-211.1,0.000179,2]
[402723266,1768837840225,-6476.99702578,0.000179,2]
[402723267,1768837840234,-385.8,0.00017903,2]
[402723268,1768837840244,-243.0,0.00017965,2]
[402723269,1768837840253,-500.0,0.00017973,2]
[402723270,1768837840262,-500.0,0.00017973,2]
[402723271,1768837840272,-500.0,0.00017973,2]
[402723272,1768837840282,-200.0,0.00017973,2]
[402723273,1768837840291,-244.64822253,0.0001798,2]
[402723274,1768837840301,-500.0,0.00017982,2]
[402723275,1768837840311,-3764.827,0.0001799,2]
[402723276,1768837840321,-324.73,0.0001799,2]
[402723277,1768837840331,-9824.6420426,0.00017997,2]
[402723278,1768837840341,-216.43441873,0.00017999,2]
[402723279,1768837840352,-500.0,0.00017999,2]
[402723280,1768837840364,-500.0,0.00017999,2]
[402723281,1768837840375,-500.0,0.00017999,2]
[402723282,1768837840384,-500.0,0.00017999,2]
[402723283,1768837840395,-300.0,0.00017999,2]
[402723284,1768837840404,-300.0,0.00017999,2]
[402723285,1768837840414,-500.0,0.00017999,2]
[402723286,1768837840423,-500.0,0.00017999,2]
[402723287,1768837840433,-500.0,0.00017999,2]
[402723288,1768837840442,-500.0,0.00017999,2]
[402723289,1768837840451,-500.0,0.00017999,2]
[402723290,1768837840461,-500.0,0.00017999,2]
[402723291,1768837840471,-511.94601024,0.00017999,2]
[402723292,1768837840481,-155.0,0.00017999,2]
[402723293,1768837840491,-510.98377513,0.00017999,2]
[402723294,1768837840501,-300.0,0.00017999,2]
[402723295,1768837840510,-300.0,0.00017999,2]
[402723296,1768837840520,-300.0,0.00017999,2]
[402723297,1768837840529,-1911142.18706556,0.00018,2]
[402723306,1768837840959,-283.6272,0.00018,2]
[402723307,1768837840970,-4220729.19725615,0.00018,2]
[402723327,1768837843385,-805204.16253033,0.00018,2]
[402723328,1768837843397,-3906.35402874,0.00018,2]
[402723329,1768837843415,-72115.50564577,0.00018,2]
[402723337,1768837845872,-150.0,0.00017973,2]
[402723338,1768837845882,-2041.21392816,0.00018,2]
[402723339,1768837846039,-1022.15825539,0.00018,2]
[402723340,1768837846052,-1987.86,0.00018,2]
[402723341,1768837846103,-410.83896305,0.00018,2]
[402723342,1768837846116,-1607.69999999,0.00018,2]
[402723431,1768838488868,170.49,0.00012794,2]
[402723432,1768838489151,170.49,0.00014927,2]
[402723433,1768838490438,920.0,0.00027397,120]
[402723434,1768838490557,920.0,0.00027397,120]
[402723435,1768838490652,920.0,0.00027397,120]
[402723436,1768838490771,920.0,0.00027397,120]
[402723437,1768838490857,920.0,0.00027397,120]
[402723438,1768838490987,920.0,0.00027397,120]
[402723439,1768838491161,920.0,0.00027397,120]
[402723440,1768838491273,920.0,0.00027397,120]
[402723441,1768838491348,920.0,0.00027397,120]
[402723442,1768838491462,920.0,0.00027397,120]
[402723443,1768838491574,920.0,0.00027397,120]
[402723444,1768838491715,920.0,0.00027397,120]
[402723445,1768838491788,920.0,0.00027397,120]
[402723446,1768838491954,920.0,0.00027397,120]
[402723447,1768838492055,920.0,0.00027397,120]
[402723448,1768838492169,920.0,0.00027397,120]
[402723449,1768838492685,920.0,0.00027397,120]
[402723450,1768838493161,920.0,0.00027397,120]
[402723451,1768838493346,5533.0,0.000154,5]
[402723452,1768838494253,920.0,0.00027397,120]
[402723453,1768838495690,920.0,0.00027397,120]
[402723454,1768838497413,920.0,0.00027397,120]
[402723455,1768838499394,920.0,0.00027397,120]
[402723456,1768838501977,920.0,0.00027397,120]
[402723457,1768838504580,926.22672128,0.00027397,120]
[402723462,1768838575308,484.0275646,0.00027397,120]
[402723468,1768838734765,1399.2851834,0.0002739,120]
[402723478,1768839032079,-865.0,0.00015771,2]
[402723479,1768839032091,-299.06715887,0.00015771,2]
[402723480,1768839032216,-2392.90284113,0.00015771,2]
[402723481,1768839032226,-1818.79,0.00015903,2]
[402723482,1768839032236,-500.0,0.0001606,3]
[402723483,1768839032244,-1500.0,0.0001621,2]
[402723484,1768839032253,-150.0,0.00016234,2]
[402723485,1768839032263,-1200.0,0.00016275,2]
[402723486,1768839032273,-300.0,0.00016275,2]
[402723487,1768839032282,-51284.8119,0.00016276,2]
[402723488,1768839032292,-500.0,0.00016306,2]
[402723489,1768839032302,-621.97218957,0.00016306,2]
[402723490,1768839032311,-500.0,0.00016306,2]
[402723491,1768839032321,-500.0,0.00016306,2]
[402723492,1768839032330,-500.0,0.00016306,2]
[402723493,1768839032340,-500.0,0.00016306,2]
[402723494,1768839032349,-500.0,0.00016306,2]
[402723495,1768839032359,-500.0,0.00016306,2]
[402723497,1768839032368,-550.0,0.00016306,2]
[402723498,1768839032378,-536.96666598,0.00016307,2]
[402723499,1768839032387,-1203.01697334,0.00016307,2]
[402723500,1768839032396,-9099.23692888,0.00016307,2]
[402723501,1768839032405,-200.0,0.00016386,2]
[402723502,1768839032415,-301.69227512,0.00016386,2]
[402723504,1768839032424,-500.0,0.00016386,2]
[402723505,1768839032434,-500.0,0.00016386,2]
[402723506,1768839032443,-500.0,0.00016386,2]
[402723507,1768839032453,-500.0,0.00016386,2]
[402723509,1768839032462,-500.0,0.00016386,2]
[402723510,1768839032472,-500.0,0.00016386,2]
[402723511,1768839032482,-500.0,0.00016386,2]
[402723512,1768839032491,-151.0,0.00016386,2]
[402723513,1768839032500,-151.0,0.00016386,2]
[402723514,1768839032509,-151.0,0.00016386,2]
[402723515,1768839032519,-1000.0,0.00016394,2]
[402723516,1768839032529,-216.43441873,0.00016395,2]
[402723517,1768839032539,-3764.827,0.00016395,2]
[402723518,1768839032548,-324.73,0.00016395,2]
[402723519,1768839032558,-183.24,0.00016395,2]
[402723520,1768839032567,-1199.06,0.00016395,2]
[402723521,1768839032577,-749.31,0.00016395,2]
[402723522,1768839032586,-9999.99,0.00016395,2]
[402723523,1768839032596,-4716.27,0.00016395,2]
[402723524,1768839032606,-150.99,0.00016395,2]
[402723525,1768839032616,-1835.03,0.00016395,2]
[402723526,1768839032625,-8235.62975159,0.00016395,2]
[402723531,1768839038188,-1764.36024841,0.00016395,2]
[402723532,1768839038199,-150.99,0.00016395,2]
[402723533,1768839038210,-591.94720685,0.00016395,2]
[402723534,1768839038222,-920.76651104,0.00016395,2]
[402723535,1768839038235,-2206.72822045,0.00016395,2]
[402723536,1768839038246,-6280.54806166,0.00016395,2]
[402723537,1768839038257,-999.99,0.00016395,2]
[402723538,1768839038267,-310.22,0.00016395,2]
[402723539,1768839038277,-500.0,0.00016395,2]
[402723540,1768839038287,-500.0,0.00016395,2]
[402723541,1768839038297,-500.0,0.00016395,2]
[402723542,1768839038307,-500.0,0.00016395,2]
[402723543,1768839038317,-500.0,0.00016395,2]
[402723544,1768839038327,-500.0,0.00016395,2]
[402723545,1768839038337,-511.94601024,0.00016395,2]
[402723546,1768839038347,-500.0,0.00016395,2]
[402723547,1768839038357,-150.0,0.00016395,2]
[402723548,1768839038368,-239.04,0.00016408,2]
[402723549,1768839038378,-203.04234096,0.00016437,2]
[402723550,1768839038390,-3969.7293993,0.00016437,2]
[402723552,1768839038402,-298.99307638,0.00016437,2]
[402723553,1768839038419,-2284.07518336,0.00016437,2]
[402723554,1768839038428,-300.0,0.00016438,2]
[402723555,1768839038438,-500.0,0.00016438,2]
[402723556,1768839038448,-500.0,0.00016438,2]
[402723557,1768839038457,-645.17550361,0.00016438,2]
[402723558,1768839038467,-926.0,0.00016438,2]
[402723560,1768839038476,-1203.01697327,0.00016484,2]
[402723562,1768839038486,-9099.23692879,0.00016484,2]
[402723563,1768839038500,-674.78265237,0.00016635,2]
[402723564,1768839038510,-1203.01697327,0.00016661,2]
[402723565,1768839038520,-9099.23692879,0.00016661,2]
[402723566,1768839038530,-151.0,0.00016661,2]
[402723567,1768839038540,-151.0,0.00016661,2]
[402723568,1768839038550,-885.0,0.00016677,2]
[402723569,1768839038560,-166.33,0.00016712,2]
[402723570,1768839038570,-1203.01697327,0.00016838,2]
[402723571,1768839038581,-9099.23692879,0.00016838,2]
[402723572,1768839038590,-200.0,0.00016842,2]
[402723573,1768839038600,-6975.39240434,0.000169,2]
[402723574,1768839038610,-1203.01697327,0.00017015,2]
[402723575,1768839038620,-9099.23692879,0.00017015,2]
[402723576,1768839038630,-170.49,0.00017059,2]
[402723577,1768839038639,-500.0,0.00017086,2]
[402723578,1768839038651,-200.0,0.00017095,2]
[402723579,1768839038661,-1203.01697327,0.00017192,2]
[402723580,1768839038671,-9099.23692879,0.00017192,2]
[402723581,1768839038682,-1000.0,0.0001726,2]
[402723582,1768839038693,-246.46661956,0.00017295,2]
[402723583,1768839038703,-239.04,0.00017319,2]
[402723584,1768839038713,-166.66,0.00017321,2]
[402723585,1768839038724,-294.12841422,0.00017348,2]
[402723586,1768839038734,-195.0,0.00017348,2]
[402723587,1768839038744,-300.0,0.00017348,2]
[402723588,1768839038755,-300.0,0.00017348,2]
[402723589,1768839038766,-1203.01697327,0.00017369,2]
[402723590,1768839038775,-9099.23692879,0.00017369,2]
[402723591,1768839038785,-1000.0,0.00017454,2]
[402723592,1768839038795,-385.8,0.00017458,2]
[402723593,1768839038805,-2000.0,0.000175,2]
[402723594,1768839038816,-2225.21,0.00017519,2]
[402723595,1768839038826,-200.0,0.00017519,2]
[402723596,1768839038836,-4741.0,0.00017522,2]
[402723597,1768839038846,-1000.0,0.00017534,2]
[402723598,1768839038861,-1203.01697327,0.00017546,2]
[402723599,1768839038871,-9099.23692879,0.00017546,2]
[402723600,1768839038881,-500.0,0.00017553,2]
[402723601,1768839038891,-500.0,0.00017553,2]
[402723602,1768839038902,-500.0,0.00017553,2]
[402723603,1768839038912,-500.0,0.00017553,2]
[402723604,1768839038923,-510.98377513,0.00017553,2]
[402723605,1768839038933,-500.0,0.00017589,2]
[402723606,1768839038944,-385.8,0.00017684,2]
[402723607,1768839038955,-45830.2244958,0.000177,2]
[402723608,1768839038966,-1000.0,0.00017703,2]
[402723609,1768839038977,-500.0,0.00017703,2]
[402723610,1768839038987,-1000.0,0.00017703,2]
[402723611,1768839038997,-151.0,0.00017703,2]
[402723612,1768839039007,-500.0,0.00017703,2]
[402723613,1768839039017,-1000.0,0.00017703,2]
[402723614,1768839039027,-500.0,0.00017703,2]
[402723615,1768839039038,-174.61919141,0.00017703,2]
[402723616,1768839039048,-1000.0,0.00017703,2]
[402723617,1768839039059,-219.35853418,0.00017703,2]
[402723618,1768839039069,-1000.0,0.00017703,2]
[402723619,1768839039080,-620.0,0.00017703,2]
[402723620,1768839039091,-1000.0,0.00017703,2]
[402723621,1768839039101,-151.0,0.00017703,2]
[402723622,1768839039111,-151.0,0.00017703,2]
[402723623,1768839039121,-151.0,0.00017703,2]
[402723624,1768839039132,-578.20924308,0.00017703,2]
[402723625,1768839039145,-359.76179104,0.00017703,2]
[402723626,1768839039155,-500.0,0.00017703,2]
[402723627,1768839039165,-500.0,0.00017703,2]
[402723628,1768839039175,-500.0,0.00017703,2]
[402723629,1768839039185,-500.0,0.00017703,2]
[402723630,1768839039195,-500.0,0.00017703,2]
[402723631,1768839039209,-500.0,0.00017703,2]
[402723632,1768839039221,-8565.75555911,0.00017703,2]
[402723633,1768839039231,-322.6107,0.00017703,2]
[402723634,1768839039241,-646.65982734,0.00017703,2]
[402723635,1768839039251,-500.0,0.00017703,2]
[402723636,1768839039261,-500.0,0.00017703,2]
[402723637,1768839039272,-500.0,0.00017703,2]
[402723638,1768839039281,-514.84070869,0.00017703,2]
[402723639,1768839039293,-187.78006525,0.00017703,2]
[402723640,1768839039303,-250.0,0.00017703,2]
[402723641,1768839039312,-250.0,0.00017703,2]
[402723642,1768839039322,-250.0,0.00017703,2]
[402723643,1768839039332,-4444.0,0.00017703,2]
[402723644,1768839039342,-1203.01697327,0.00017723,2]
[402723645,1768839039352,-9099.23692879,0.00017723,2]
[402723646,1768839039363,-456.0,0.00017736,2]
[402723647,1768839039374,-8882.6885148,0.00017758,2]
[402723648,1768839039383,-810.65546484,0.00017763,2]
[402723649,1768839039394,-420.0,0.00017789,2]
[402723650,1768839039408,-650.4293085,0.00017795,2]
[402723651,1768839039420,-1147.43439804,0.00017795,2]
[402723652,1768839039429,-1716.49323593,0.00017795,2]
[402723653,1768839039440,-2322.4707,0.00017795,2]
[402723654,1768839039450,-1999.0,0.00017808,2]
[402723655,1768839039460,-9211.34798985,0.00017813,2]
[402723656,1768839039471,-480.0,0.00017878,2]
[402723657,1768839039483,-448.0,0.00017887,2]
[402723658,1768839039494,-1268.869,0.00017887,2]
[402723659,1768839039505,-1202.0,0.00017887,2]
[402723660,1768839039516,-915.0,0.00017887,2]
[402723661,1768839039526,-4826.0,0.00017887,2]
[402723662,1768839039535,-2440.0,0.00017887,2]
[402723663,1768839039545,-6562.0,0.00017887,2]
[402723664,1768839039555,-166.66,0.00017893,2]
[402723665,1768839039564,-198.91080217,0.000179,2]